fUSD/lending_fUSD_20251221
["ID","MTS","AMOUNT","RATE_DAILY","PERIOD"]
[399444060,1766361031934,-23278.09257756,9.646e-05,2]
[399444067,1766361036136,500.0,9.645e-05,2]
[399444068,1766361036183,211.74730763,9.645e-05,2]
[399444069,1766361036280,281.73899798,9.645e-05,2]
[399444070,1766361036600,181.98886645,9.645e-05,2]
[399444072,1766361037905,-595031.66990844,9.646e-05,2]
[399444073,1766361037914,-250.0,9.651e-05,2]
[399444074,1766361037923,-583.5607,9.652e-05,2]
[399444075,1766361037934,-3524.07,9.681e-05,2]
[399444076,1766361037945,-500.0,9.745e-05,2]
[399444077,1766361037954,-150.0,9.751e-05,2]
[399444078,1766361037964,-300.0,9.751e-05,2]
[399444079,1766361037973,-312.0,9.751e-05,2]
[399444080,1766361037982,-2297.1,9.751e-05,2]
[399444081,1766361037991,-20112.7206,9.753e-05,2]
[399444082,1766361038000,-1000.0,9.753e-05,2]
[399444083,1766361038009,-511.66,9.753e-05,2]
[399444084,1766361038018,-4999.99,9.753e-05,2]
[399444085,1766361038027,-9999.99,9.753e-05,2]
[399444086,1766361038037,-299.99,9.753e-05,2]
[399444087,1766361038046,-999.99,9.753e-05,2]
[399444088,1766361038055,-150.99,9.753e-05,2]
[399444090,1766361038064,-150.99,9.753e-05,2]
[399444092,1766361038073,-2023.23,9.753e-05,2]
[399444094,1766361038083,-13312.29,9.753e-05,2]
[399444095,1766361038092,-197.64230935,9.753e-05,2]
[399444097,1766361038101,-151.0,0.0001,2]
[399444099,1766361038110,-151.0,0.0001,2]
[399444101,1766361038119,-151.0,0.0001,2]
[399444103,1766361038128,-151.0,0.0001,2]
[399444105,1766361038138,-151.0,0.0001,2]
[399444107,1766361038147,-151.0,0.0001,2]
[399444109,1766361038157,-151.0,0.0001,2]
[399444111,1766361038166,-205.19317791,0.0001,2]
[399444112,1766361038175,-500.0,0.00010019,2]
[399444114,1766361038185,-2297.1,0.00010025,2]
[399444117,1766361038194,-26163.1,0.00010086,2]
[399444119,1766361038203,-500.0,0.00010293,2]
[399444120,1766361038213,-2297.1,0.00010299,2]
[399444122,1766361038223,-4265.54,0.00010474,2]
[399444124,1766361038232,-500.0,0.00010567,2]
[399444126,1766361038242,-2297.1,0.00010573,2]
[399444128,1766361038251,-420.0,0.00010609,2]
[399444129,1766361038260,-420.0,0.00010609,2]
[399444130,1766361038270,-1680.0,0.00010609,2]
[399444131,1766361038280,-250.0,0.0001061,2]
[399444132,1766361038291,-250.0,0.00010616,2]
[399444133,1766361038301,-255.0,0.00010726,2]
[399444134,1766361038310,-500.0,0.00010841,2]
[399444135,1766361038609,-2297.1,0.00010847,2]
[399444136,1766361038619,-150.0,0.00010959,2]
[399444137,1766361038629,-2234.03011894,0.00011089,2]
[399444138,1766361038639,-29952.05491214,0.00011099,2]
[399444139,1766361038649,-29952.05491205,0.00011099,2]
[399444140,1766361038659,-27362.40699479,0.00011099,2]
[399444141,1766361038668,-27362.40699477,0.00011099,2]
[399444142,1766361038678,-500.0,0.00011115,2]
[399444143,1766361038687,-2297.1,0.00011121,2]
[399444144,1766361038697,-29952.05491205,0.00011184,2]
[399444145,1766361038707,-1647.08014488,0.00011263,3]
[399444146,1766361038717,-27362.40699477,0.00011263,2]
[399444147,1766361038727,-515.21660322,0.00011388,2]
[399444148,1766361038737,-2297.1,0.00011395,2]
[399444149,1766361038746,-3240.0,0.00011507,2]
[399444150,1766361038756,-2297.1,0.00011668,2]
[399444151,1766361038770,-457.0,0.0001167,2]
[399444152,1766361038780,-2351.0,0.0001167,2]
[399444153,1766361038789,-218.0,0.0001167,2]
[399444154,1766361038799,-150.0,0.00011753,2]
[399444155,1766361038810,-433.0,0.00011798,2]
[399444156,1766361038820,-2297.1,0.00011942,2]
[399444157,1766361038829,-29952.05491205,0.00012001,2]
[399444158,1766361038839,-27362.40699477,0.00012069,2]
[399444159,1766361038850,-252352.18,0.00012185,2]
[399444160,1766361038860,-500.0,0.00012192,2]
[399444161,1766361038870,-2297.1,0.00012216,2]
[399444162,1766361038881,-384.43,0.00012247,2]
[399444163,1766361038891,-2297.1,0.0001249,2]
[399444165,1766361038901,-1619.7673293,0.00012651,2]
[399444167,1766361038910,-2631.1466862,0.00012651,2]
[399444169,1766361038920,-124938.7700097,0.00012651,2]
[399444171,1766361038930,-2297.1,0.00012764,2]
[399444173,1766361038939,-29952.05491205,0.00012817,2]
[399444175,1766361038950,-3292.0,0.00012837,2]
[399444177,1766361038960,-553.4762353,0.00012863,2]
[399444179,1766361038970,-27362.40699477,0.00012874,2]
[399444180,1766361038980,-736.0,0.00012978,2]
[399444181,1766361038993,-2297.1,0.00013038,2]
[399444182,1766361039003,-411.45,0.00013045,2]
[399444183,1766361039013,-166.66,0.00013117,2]
[399444184,1766361039024,-2297.1,0.00013312,2]
[399444185,1766361039034,-166.66,0.0001355,2]
[399444186,1766361039044,-2297.1,0.00013586,2]
[399444187,1766361039054,-1600.0,0.0001359,2]
[399444188,1766361039063,-631.78490398,0.00013599,2]
[399444189,1766361039073,-151.0,0.00013605,2]
[399444190,1766361039083,-29952.05491205,0.00013634,2]
[399444191,1766361039093,-500.0,0.00013643,2]
[399444192,1766361039103,-535.22474582,0.00013643,2]
[399444193,1766361039112,-500.0,0.00013643,2]
[399444194,1766361039122,-500.0,0.00013643,2]
[399444195,1766361039131,-500.0,0.00013643,2]
[399444196,1766361039141,-500.0,0.00013643,2]
[399444197,1766361039151,-500.0,0.00013643,2]
[399444198,1766361039161,-550.17823057,0.00013643,2]
[399444199,1766361039171,-500.0,0.00013643,2]
[399444200,1766361039181,-264.97471348,0.00013643,2]
[399444201,1766361039191,-500.0,0.00013643,2]
[399444202,1766361039200,-500.25022933,0.00013643,2]
[399444203,1766361039210,-500.0,0.00013643,2]
[399444204,1766361039219,-500.0,0.00013643,2]
[399444205,1766361039229,-500.0,0.00013643,2]
[399444206,1766361039239,-500.0,0.00013643,2]
[399444207,1766361039249,-500.0,0.00013643,2]
[399444208,1766361039259,-235.55154497,0.00013643,2]
[399444209,1766361039268,-501.40165484,0.00013643,2]
[399444210,1766361039278,-500.0,0.00013643,2]
[399444211,1766361039287,-500.0,0.00013643,2]
[399444212,1766361039296,-500.0,0.00013643,2]
[399444213,1766361039306,-500.0,0.00013643,2]
[399444214,1766361039315,-500.0,0.00013643,2]
[399444215,1766361039326,-500.0,0.00013643,2]
[399444216,1766361039336,-453.53849539,0.00013643,2]
[399444217,1766361039345,-500.0,0.00013643,2]
[399444218,1766361039355,-500.0,0.00013643,2]
[399444219,1766361039365,-500.0,0.00013643,2]
[399444220,1766361039375,-201.68060624,0.00013643,2]
[399444221,1766361039385,-500.0,0.00013643,2]
[399444222,1766361039394,-484.06013596,0.00013643,2]
[399444223,1766361039405,-500.0,0.00013643,2]
[399444224,1766361039414,-500.0,0.00013643,2]
[399444225,1766361039424,-500.0,0.00013643,2]
[399444226,1766361039435,-500.0,0.00013643,2]
[399444227,1766361039444,-500.0,0.00013643,2]
[399444228,1766361039455,-27362.40699477,0.00013679,2]
[399444229,1766361039464,-151.0,0.00013695,2]
[399444230,1766361039474,-500.0,0.00013698,2]
[399444231,1766361039484,-500.0,0.00013698,2]
[399444232,1766361039493,-500.0,0.00013698,2]
[399444233,1766361039503,-500.0,0.00013698,2]
[399444234,1766361039513,-500.0,0.00013698,2]
[399444235,1766361039522,-500.0,0.00013698,2]
[399444236,1766361039532,-500.0,0.00013698,2]
[399444237,1766361039542,-500.0,0.00013698,2]
[399444238,1766361039552,-586.08,0.00013698,2]
[399444239,1766361039562,-586.08,0.00013698,2]
[399444240,1766361039571,-586.08,0.00013698,2]
[399444241,1766361039581,-586.08,0.00013698,2]
[399444242,1766361039591,-586.08,0.00013698,2]
[399444243,1766361039600,-586.08,0.00013698,2]
[399444244,1766361039610,-500.0,0.00013698,2]
[399444245,1766361039619,-500.0,0.00013698,2]
[399444246,1766361039629,-500.0,0.00013698,2]
[399444247,1766361039638,-500.0,0.00013698,2]
[399444248,1766361039647,-500.0,0.00013698,2]
[399444249,1766361039657,-500.0,0.00013698,2]
[399444250,1766361039667,-500.0,0.00013698,2]
[399444251,1766361039676,-500.0,0.00013698,2]
[399444252,1766361039686,-500.0,0.00013698,2]
[399444253,1766361039695,-500.0,0.00013698,2]
[399444254,1766361039705,-500.0,0.00013698,2]
[399444255,1766361039714,-500.0,0.00013698,2]
[399444256,1766361039723,-500.0,0.00013698,2]
[399444257,1766361039734,-500.0,0.00013698,2]
[399444258,1766361039744,-500.0,0.00013698,2]
[399444259,1766361039755,-500.0,0.00013698,2]
[399444260,1766361039767,-500.0,0.00013698,2]
[399444261,1766361039777,-500.0,0.00013698,2]
[399444262,1766361039787,-500.0,0.00013698,2]
[399444263,1766361039798,-500.0,0.00013698,2]
[399444264,1766361039807,-500.0,0.00013698,2]
[399444265,1766361039817,-500.0,0.00013698,2]
[399444266,1766361039828,-500.0,0.00013698,2]
[399444267,1766361039840,-500.0,0.00013698,2]
[399444268,1766361039852,-500.0,0.00013698,2]
[399444269,1766361039862,-500.0,0.00013698,2]
[399444270,1766361039872,-500.0,0.00013698,2]
[399444271,1766361039881,-500.0,0.00013698,2]
[399444272,1766361039891,-500.0,0.00013698,2]
[399444273,1766361039900,-500.0,0.00013698,2]
[399444274,1766361039910,-500.0,0.00013698,2]
[399444275,1766361039921,-500.0,0.00013698,2]
[399444276,1766361039931,-500.0,0.00013698,2]
[399444277,1766361039940,-500.0,0.00013698,2]
[399444278,1766361039951,-500.0,0.00013698,2]
[399444279,1766361039960,-500.0,0.00013698,2]
[399444280,1766361039971,-344.15406571,0.00013698,2]
[399444281,1766361039980,-500.0,0.00013698,2]
[399444282,1766361039990,-500.0,0.00013698,2]
[399444283,1766361039999,-500.0,0.00013698,2]
[399444284,1766361040010,-500.0,0.00013698,2]
[399444285,1766361040019,-500.0,0.00013698,2]
[399444286,1766361040028,-500.0,0.00013698,2]
[399444287,1766361040038,-500.0,0.00013698,2]
[399444288,1766361040048,-500.0,0.00013698,2]
[399444289,1766361040057,-500.0,0.00013698,2]
[399444290,1766361040066,-500.0,0.00013698,2]
[399444291,1766361040076,-500.0,0.00013698,2]
[399444292,1766361040087,-500.0,0.00013698,2]
[399444293,1766361040097,-500.0,0.00013698,2]
[399444294,1766361040108,-500.0,0.00013698,2]
[399444295,1766361040118,-500.0,0.00013698,2]
[399444296,1766361040129,-500.0,0.00013698,2]
[399444297,1766361040139,-500.0,0.00013698,2]
[399444298,1766361040148,-500.0,0.00013698,2]
[399444299,1766361040158,-500.0,0.00013698,2]
[399444300,1766361040167,-500.0,0.00013698,2]
[399444301,1766361040177,-500.0,0.00013698,2]
[399444302,1766361040187,-500.0,0.00013698,2]
[399444303,1766361040196,-505.3255501,0.00013698,2]
[399444304,1766361040207,-500.0,0.00013698,2]
[399444305,1766361040218,-500.0,0.00013698,2]
[399444306,1766361040227,-500.0,0.00013698,2]
[399444307,1766361040236,-500.0,0.00013698,2]
[399444308,1766361040247,-535.08302211,0.00013698,2]
[399444309,1766361040258,-500.0,0.00013698,2]
[399444310,1766361040269,-500.0,0.00013698,2]
[399444311,1766361040278,-500.0,0.00013698,2]
[399444312,1766361040288,-500.0,0.00013698,2]
[399444313,1766361040297,-500.0,0.00013698,2]
[399444314,1766361040307,-500.0,0.00013698,2]
[399444315,1766361040316,-500.0,0.00013698,2]
[399444316,1766361040325,-500.0,0.00013698,2]
[399444317,1766361040334,-500.0,0.00013698,2]
[399444318,1766361040343,-508.98134456,0.00013698,2]
[399444319,1766361040353,-500.0,0.00013698,2]
[399444320,1766361040362,-500.0,0.00013698,2]
[399444321,1766361040371,-500.0,0.00013698,2]
[399444322,1766361040380,-500.0,0.00013698,2]
[399444323,1766361040389,-500.0,0.00013698,2]
[399444324,1766361040398,-500.0,0.00013698,2]
[399444325,1766361040408,-500.0,0.00013698,2]
[399444326,1766361040418,-500.0,0.00013698,2]
[399444327,1766361040427,-500.0,0.00013698,2]
[399444328,1766361040437,-500.0,0.00013698,2]
[399444329,1766361040446,-500.0,0.00013698,2]
[399444330,1766361040455,-500.0,0.00013698,2]
[399444331,1766361040465,-500.0,0.00013698,2]
[399444332,1766361040474,-511.95166241,0.00013698,2]
[399444333,1766361040483,-500.0,0.00013698,2]
[399444334,1766361040493,-500.0,0.00013698,2]
[399444335,1766361040502,-500.0,0.00013698,2]
[399444336,1766361040511,-500.0,0.00013698,2]
[399444337,1766361040520,-504.46336391,0.00013698,2]
[399444338,1766361040529,-500.0,0.00013698,2]
[399444339,1766361040538,-279.56152478,0.00013698,2]
[399444340,1766361040547,-200.0,0.00013699,2]
[399444341,1766361040557,-196.08,0.00013699,2]
[399444342,1766361040566,-163.4,0.00013699,2]
[399444344,1766361040576,-637.54804043,0.00013699,2]
[399444345,1766361040585,-336.49345819,0.00013699,2]
[399444346,1766361040594,-2297.1,0.0001386,2]
[399444347,1766361040603,-166.66,0.00013983,2]
[399444348,1766361040612,-4609.0,0.00014121,2]
[399444349,1766361040621,-2297.1,0.00014134,2]
[399444350,1766361040630,-3728.0689,0.00014179,2]
[399444351,1766361040640,-151.0,0.0001419,2]
[399444352,1766361040650,-1000.0,0.00014191,2]
[399444353,1766361040658,-1000.0,0.00014191,2]
[399444354,1766361040667,-1000.0,0.00014191,2]
[399444355,1766361040676,-1000.0,0.00014191,2]
[399444356,1766361040685,-1000.0,0.00014191,2]
[399444357,1766361040695,-1000.0,0.00014191,2]
[399444358,1766361040704,-1000.0,0.00014191,2]
[399444359,1766361040713,-1000.0,0.00014191,2]
[399444360,1766361040722,-1000.0,0.00014191,2]
[399444361,1766361040731,-1000.0,0.00014191,2]
[399444362,1766361040741,-1000.0,0.00014191,2]
[399444363,1766361040750,-1000.0,0.00014191,2]
[399444364,1766361040764,-1000.0,0.00014191,2]
[399444365,1766361040773,-1000.0,0.00014191,2]
[399444366,1766361040782,-1000.0,0.00014191,2]
[399444367,1766361040791,-1000.0,0.00014191,2]
[399444368,1766361040802,-1000.0,0.00014191,2]
[399444369,1766361040811,-1000.0,0.00014191,2]
[399444370,1766361040821,-803.77125516,0.00014191,2]
[399444371,1766361040830,-936.70587254,0.00014191,2]
[399444372,1766361040839,-1000.0,0.00014191,2]
[399444373,1766361040848,-1000.0,0.00014191,2]
[399444374,1766361040857,-1144.26340267,0.00014191,2]
[399444375,1766361040867,-1000.0,0.00014191,2]
[399444376,1766361040876,-1000.0,0.00014191,2]
[399444377,1766361040885,-1000.0,0.00014191,2]
[399444378,1766361040894,-866.15226393,0.00014191,2]
[399444379,1766361040903,-1252.0,0.00014275,2]
[399444380,1766361040912,-1619.7673293,0.00014383,2]
[399444381,1766361040921,-2144.91444113,0.00014384,2]
[399444382,1766361040930,-2297.1,0.00014408,2]
[399444383,1766361040938,-166.66,0.00014416,2]
[399444384,1766361040947,-2631.1466862,0.00014444,2]
[399444385,1766361040956,-29952.05491205,0.0001445,2]
[399444386,1766361040965,-124938.7700097,0.00014481,2]
[399444387,1766361040975,-500.0,0.00014484,2]
[399444388,1766361040983,-500.0,0.00014484,2]
[399444389,1766361040992,-500.0,0.00014484,2]
[399444390,1766361041001,-27362.40699477,0.00014484,2]
[399444391,1766361041010,-3289.12262717,0.0001451,2]
[399444392,1766361041019,-2297.1,0.00014682,2]
[399444393,1766361041029,-1101.62355976,0.00014738,5]
[399444394,1766361041037,-158.72296276,0.00014739,2]
[399444395,1766361041046,-500.84654228,0.00014739,2]
[399444396,1766361041055,-1500.0,0.00014739,2]
[399444397,1766361041064,-1500.0,0.00014739,2]
[399444398,1766361041073,-597.40388542,0.00014739,2]
[399444399,1766361041082,-1500.0,0.00014739,2]
[399444400,1766361041091,-1500.0,0.00014739,2]
[399444401,1766361041100,-1500.0,0.00014739,2]
[399444402,1766361041109,-1500.0,0.00014739,2]
[399444403,1766361041118,-1500.0,0.00014739,2]
[399444404,1766361041126,-1500.0,0.00014739,2]
[399444405,1766361041135,-1500.0,0.00014739,2]
[399444406,1766361041144,-1500.0,0.00014739,2]
[399444407,1766361041153,-1500.0,0.00014739,2]
[399444408,1766361041163,-1151.31907307,0.00014739,2]
[399444409,1766361041172,-1500.0,0.00014739,2]
[399444410,1766361041181,-1500.0,0.00014739,2]
[399444411,1766361041190,-1500.0,0.00014739,2]
[399444412,1766361041199,-1500.0,0.00014739,2]
[399444413,1766361041208,-1500.0,0.00014739,2]
[399444414,1766361041218,-1500.0,0.00014739,2]
[399444415,1766361041227,-1500.0,0.00014739,2]
[399444416,1766361041236,-1500.0,0.0001477,2]
[399444417,1766361041246,-553.4762353,0.00014803,2]
[399444418,1766361041256,-166.66,0.00014849,2]
[399444419,1766361041265,-2144.91444113,0.00014887,2]
[399444420,1766361041274,-2297.13,0.00014956,2]
[399444421,1766361041285,-500.0,0.00015121,2]
[399444422,1766361041294,-631.78490397,0.0001525,2]
[399444423,1766361041305,-29952.05491205,0.00015267,2]
[399444424,1766361041314,-166.66,0.00015282,2]
[399444425,1766361041324,-586.08,0.00015286,2]
[399444426,1766361041333,-666.07222089,0.00015287,2]
[399444427,1766361041344,-1500.98434959,0.00015287,2]
[399444428,1766361041355,-936.03619538,0.00015287,2]
[399444429,1766361041364,-2000.0,0.00015287,2]
[399444430,1766361041375,-158.38653664,0.00015287,2]
[399444431,1766361041387,-2000.0,0.00015287,2]
[399444432,1766361041398,-1004.443568,0.00015287,2]
[399444433,1766361041408,-2000.0,0.00015287,2]
[399444434,1766361041418,-2000.0,0.00015287,2]
[399444435,1766361041429,-1129.20788422,0.00015287,2]
[399444436,1766361041439,-2000.0,0.00015287,2]
[399444437,1766361041448,-2000.0,0.00015287,2]
[399444438,1766361041457,-2000.0,0.00015287,2]
[399444439,1766361041466,-2000.0,0.00015287,2]
[399444440,1766361041475,-1071.82272799,0.00015287,2]
[399444441,1766361041485,-2000.0,0.00015287,2]
[399444442,1766361041494,-458.37108423,0.00015287,2]
[399444443,1766361041503,-503.75804982,0.00015287,2]
[399444444,1766361041512,-1600.0,0.00015289,2]
[399444445,1766361041521,-27362.40699477,0.0001529,2]
[399444446,1766361041530,-2144.91444113,0.0001539,2]
[399444447,1766361041539,-6453.0,0.00015533,2]
[399444448,1766361041548,-999.0,0.0001568,3]
[399444449,1766361041557,-2129.0,0.00015709,2]
[399444450,1766361041566,-2500.0,0.00015835,2]
[399444451,1766361041575,-2500.0,0.00015835,2]
[399444452,1766361041584,-2500.0,0.00015835,2]
[399444453,1766361041593,-2500.0,0.00015835,2]
[399444454,1766361041601,-2500.0,0.00015835,2]
[399444455,1766361041610,-2500.0,0.00015835,2]
[399444456,1766361041619,-2500.0,0.00015835,2]
[399444457,1766361041628,-2500.0,0.00015835,2]
[399444458,1766361041637,-2500.0,0.00015835,2]
[399444459,1766361041646,-2144.91444113,0.00015894,2]
[399444460,1766361041655,-500.0,0.00015999,2]
[399444461,1766361041664,-29952.05491205,0.00016083,2]
[399444462,1766361041673,-27362.40699477,0.00016095,2]
[399444463,1766361041682,-1000.0,0.000161,2]
[399444464,1766361041691,-1619.7673293,0.00016114,2]
[399444465,1766361041701,-151.0,0.00016149,2]
[399444466,1766361041711,-156.587,0.00016149,2]
[399444467,1766361041719,-162.380719,0.00016149,2]
[399444468,1766361041728,-153.50930745,0.00016149,2]
[399444469,1766361041737,-300.0,0.00016149,2]
[399444470,1766361041746,-151.0,0.00016149,2]
[399444471,1766361041756,-200.0,0.00016149,2]
[399444472,1766361041768,-207.4,0.00016149,2]
[399444473,1766361041777,-215.0738,0.00016149,2]
[399444474,1766361041786,-223.0315306,0.00016149,2]
[399444475,1766361041796,-231.28369723,0.00016149,2]
[399444476,1766361041807,-239.84119403,0.00016149,2]
[399444477,1766361041815,-248.71531821,0.00016149,2]
[399444478,1766361041824,-257.91778498,0.00016149,2]
[399444479,1766361041836,-267.46074303,0.00016149,2]
[399444480,1766361041846,-586.08,0.00016199,2]
[399444481,1766361041855,-500.0,0.00016199,2]
[399444482,1766361041864,-384.43,0.00016199,2]
[399444483,1766361041873,-2631.1466862,0.00016236,2]
[399444484,1766361041883,-500.0,0.00016268,2]
[399444485,1766361041892,-124938.7700097,0.0001631,2]
[399444486,1766361041901,-2351.34245587,0.00016383,2]
[399444487,1766361041910,-1004.80601418,0.00016383,2]
[399444488,1766361041919,-3000.0,0.00016383,2]
[399444489,1766361041928,-3000.0,0.00016383,2]
[399444490,1766361041937,-3000.0,0.00016383,2]
[399444491,1766361041947,-2003.160494,0.00016383,2]
[399444492,1766361041956,-624.62923411,0.00016383,2]
[399444493,1766361041966,-949.44717494,0.00016383,2]
[399444494,1766361041975,-1087.77987847,0.00016383,2]
[399444495,1766361041984,-2144.91444113,0.00016397,2]
[399444496,1766361041993,-1000.0,0.000164,2]
[399444497,1766361042003,-500.0,0.00016437,2]
[399444498,1766361042013,-500.0,0.00016437,2]
[399444499,1766361042022,-3270.2,0.00016438,2]
[399444500,1766361042031,-500.0,0.00016438,2]
[399444501,1766361042042,-500.0,0.00016438,3]
[399444502,1766361042051,-500.0,0.00016438,4]
[399444503,1766361042060,-500.0,0.00016438,5]
[399444504,1766361042069,-500.0,0.00016438,6]
[399444505,1766361042079,-500.0,0.00016438,7]
[399444506,1766361042090,-500.0,0.00016438,8]
[399444507,1766361042099,-500.0,0.00016438,9]
[399444508,1766361042110,-500.0,0.00016438,2]
[399444509,1766361042120,-500.0,0.00016438,2]
[399444510,1766361042130,-500.0,0.00016438,2]
[399444511,1766361042140,-500.0,0.00016438,2]
[399444512,1766361042149,-500.0,0.00016438,2]
[399444513,1766361042158,-500.0,0.00016438,2]
[399444514,1766361042168,-381.95,0.00016438,2]
[399444515,1766361042177,-800.0,0.00016438,2]
[399444516,1766361042186,-14375.1,0.00016438,2]
[399444517,1766361042195,-500.0,0.00016473,2]
[399444518,1766361042203,-500.0,0.00016473,2]
[399444519,1766361042215,-500.0,0.00016473,2]
[399444520,1766361042226,-500.0,0.00016473,2]
[399444521,1766361042235,-162.38378184,0.00016473,2]
[399444522,1766361042247,-500.0,0.00016473,2]
[399444523,1766361042256,-500.0,0.00016473,2]
[399444524,1766361042265,-500.0,0.00016473,2]
[399444525,1766361042275,-334.60508476,0.00016473,2]
[399444526,1766361042284,-500.0,0.00016473,2]
[399444527,1766361042295,-500.0,0.00016473,2]
[399444528,1766361042305,-500.0,0.00016473,2]
[399444529,1766361042314,-500.0,0.00016473,2]
[399444530,1766361042323,-500.0,0.00016473,2]
[399444531,1766361042333,-518.86476464,0.00016473,2]
[399444532,1766361042342,-500.0,0.00016473,2]
[399444533,1766361042351,-500.0,0.00016473,2]
[399444534,1766361042360,-500.0,0.00016473,2]
[399444535,1766361042370,-500.0,0.00016473,2]
[399444536,1766361042379,-500.0,0.00016473,2]
[399444537,1766361042389,-500.0,0.00016473,2]
[399444538,1766361042400,-500.0,0.00016473,2]
[399444539,1766361042409,-182.51229941,0.00016473,2]
[399444540,1766361042419,-500.0,0.00016473,2]
[399444541,1766361042428,-500.0,0.00016473,2]
[399444542,1766361042437,-555.97636192,0.00016473,2]
[399444543,1766361042446,-500.0,0.00016473,2]
[399444544,1766361042456,-160.18740865,0.00016473,2]
[399444545,1766361042465,-500.0,0.00016473,2]
[399444546,1766361042474,-500.0,0.00016473,2]
[399444547,1766361042484,-156.55034948,0.00016473,2]
[399444548,1766361042494,-500.0,0.00016473,2]
[399444549,1766361042503,-500.0,0.00016473,2]
[399444550,1766361042512,-500.0,0.00016473,2]
[399444551,1766361042521,-500.0,0.00016473,2]
[399444552,1766361042530,-500.0,0.00016473,2]
[399444553,1766361042539,-500.0,0.00016473,2]
[399444554,1766361042548,-160.18740865,0.00016473,2]
[399444555,1766361042557,-500.0,0.00016473,2]
[399444556,1766361042567,-160.18740865,0.00016473,2]
[399444557,1766361042576,-160.18818998,0.00016473,2]
[399444558,1766361042586,-500.0,0.00016473,2]
[399444559,1766361042596,-500.0,0.00016473,2]
[399444560,1766361042606,-500.0,0.00016473,2]
[399444561,1766361042615,-500.0,0.00016473,2]
[399444562,1766361042624,-500.0,0.00016473,2]
[399444563,1766361042633,-500.0,0.00016473,2]
[399444564,1766361042642,-500.0,0.00016473,2]
[399444570,1766361042863,-500.0,0.00016473,2]
[399444571,1766361042873,-500.0,0.00016473,2]
[399444573,1766361042882,-500.0,0.00016473,2]
[399444575,1766361042891,-565.78797354,0.00016473,2]
[399444576,1766361042901,-500.0,0.00016473,2]
[399444577,1766361042910,-639.72398952,0.00016473,2]
[399444578,1766361042920,-500.0,0.00016473,2]
[399444579,1766361042929,-500.0,0.00016473,2]
[399444580,1766361042938,-500.0,0.00016473,2]
[399444581,1766361042948,-570.29356194,0.00016473,2]
[399444582,1766361042960,-500.0,0.00016473,2]
[399444583,1766361042979,-160.18477965,0.00016473,2]
[399444584,1766361042989,-500.0,0.00016473,2]
[399444585,1766361042999,-150.17482874,0.00016473,2]
[399444586,1766361043008,-500.0,0.00016473,2]
[399444587,1766361043017,-160.18741035,0.00016473,2]
[399444588,1766361043026,-500.0,0.00016473,2]
[399444589,1766361043035,-500.0,0.00016473,2]
[399444590,1766361043045,-500.0,0.00016473,2]
[399444591,1766361043055,-506.25214638,0.00016473,2]
[399444592,1766361043066,-500.0,0.00016473,2]
[399444593,1766361043075,-164.83274193,0.00016473,2]
[399444594,1766361043084,-500.0,0.00016473,2]
[399444595,1766361043094,-500.0,0.00016473,2]
[399444596,1766361043104,-207.48820699,0.00016473,2]
[399444597,1766361043113,-500.0,0.00016473,2]
[399444598,1766361043122,-500.0,0.00016473,2]
[399444599,1766361043132,-499.68742722,0.00016473,2]
[399444600,1766361043143,-500.0,0.00016473,2]
[399444601,1766361043152,-530.05316157,0.00016473,2]